fUSD/lending_fUSD_20260615
["ID","MTS","AMOUNT","RATE_DAILY","PERIOD"]
[425122496,1781533841000,-1620.43110802,0.00013229,2]
[425122499,1781533841000,-500.0,0.00013459,2]
[425122501,1781533841000,-500.0,0.00013603,2]
[425122504,1781533841000,-500.0,0.00013698,2]
[425122503,1781533841000,-500.0,0.00013698,2]
[425122509,1781533841000,-500.0,0.00013698,2]
[425122502,1781533841000,-500.0,0.00013698,2]
[425122508,1781533841000,-500.0,0.00013698,2]
[425122506,1781533841000,-500.0,0.00013698,2]
[425122507,1781533841000,-500.0,0.00013698,2]
[425122505,1781533841000,-500.0,0.00013698,2]
[425122512,1781533841000,-168.79,0.00013784,2]
[425122510,1781533841000,-500.0,0.00013698,2]
[425122513,1781533841000,-433.0,0.00013856,2]
[425122519,1781533841000,-250.0,0.00014,2]
[425122516,1781533841000,-150.0,0.00013937,2]
[425122518,1781533841000,-3750.75986575,0.0001399,2]
[425122517,1781533841000,-358.34439362,0.00013937,2]
[425122522,1781533841000,-481.04633503,0.00014068,2]
[425122515,1781533841000,-741.09,0.00013897,2]
[425122521,1781533841000,-500.0,0.00014068,2]
[425122514,1781533841000,-500.0,0.00013877,2]
[425122520,1781533841000,-741.09,0.0001406,2]
[425122523,1781533841000,-685.76,0.00014141,2]
[425122511,1781533841000,-500.0,0.00013698,2]
[425122495,1781533841000,-44322.46917553,0.0001311,2]
[425122479,1781533841000,-250.0,0.00012605,2]
[425122498,1781533841000,-2000.0,0.00013425,2]
[425122470,1781533841000,-9999.99,0.00012087,2]
[425122476,1781533841000,-198.11,0.00012329,2]
[425122531,1781533841000,-741.09,0.00014291,2]
[425122475,1781533841000,-1352.85,0.00012311,2]
[425122472,1781533841000,-2223.50085987,0.00012139,2]
[425122471,1781533841000,-243.00351856,0.00012105,2]
[425122469,1781533841000,-3153.46059502,0.00012087,2]
[425122477,1781533841000,-316.34,0.00012445,2]
[425122480,1781533841000,-168.79,0.00012635,2]
[425122481,1781533841000,-1146.09,0.0001264,2]
[425122487,1781533841000,-970.13187592,0.00012876,2]
[425122484,1781533841000,-250.0,0.00012768,2]
[425122488,1781533841000,-99389.1208,0.00012878,2]
[425122478,1781533841000,-167.87247565,0.00012589,7]
[425122486,1781533841000,-911.42744158,0.00012845,2]
[425122482,1781533841000,-250.0,0.00012669,2]
[425122483,1781533841000,-255.0,0.00012694,2]
[425122485,1781533841000,-1600.0,0.00012805,2]
[425122490,1781533841000,-735.62668225,0.00012948,2]
[425122500,1781533841000,-741.09,0.00013503,2]
[425122489,1781533841000,-170.66,0.00012894,2]
[425122491,1781533841000,-18974.02723672,0.00013,2]
[425122493,1781533841000,-167.87247565,0.00013055,7]
[425122492,1781533841000,-27143.88,0.00013041,2]
[425122494,1781533841000,-500.0,0.00013055,2]
[425122497,1781533841000,-500.0,0.00013329,2]
[425122526,1781533841000,-170.66,0.00014184,2]
[425122473,1781533841000,-167.87247565,0.00012239,7]
[425122527,1781533841000,-741.09,0.00014186,2]
[425122565,1781533841000,-685.76,0.00014634,2]
[425122558,1781533841000,-741.09,0.00014546,2]
[425122567,1781533841000,-685.76,0.00014675,2]
[425122559,1781533841000,-685.76,0.00014568,2]
[425122568,1781533841000,-741.09,0.00014686,2]
[425122569,1781533841000,-685.76,0.00014696,2]
[425122566,1781533841000,-685.76,0.00014655,2]
[425122562,1781533841000,-190.427766,0.00014598,2]
[425122564,1781533841000,-741.09,0.00014618,2]
[425122561,1781533841000,-685.76,0.0001459,2]
[425122563,1781533841000,-685.76,0.00014612,2]
[425122560,1781533841000,-44322.46917553,0.00014584,2]
[425122551,1781533841000,-685.76,0.00014448,2]
[425122570,1781533841000,-500.0,0.00014699,2]
[425122571,1781533841000,-685.76,0.00014716,2]
[425122573,1781533841000,-500.0,0.00014747,2]
[425122574,1781533841000,-1000.0,0.00014748,2]
[425122576,1781533841000,-1000.0,0.00014748,2]
[425122579,1781533841000,-1000.0,0.00014748,2]
[425122577,1781533841000,-1000.0,0.00014748,2]
[425122575,1781533841000,-1000.0,0.00014748,2]
[425122578,1781533841000,-1000.0,0.00014748,2]
[425122580,1781533841000,-1000.0,0.00014748,2]
[425122582,1781533841000,-1000.0,0.00014748,2]
[425122581,1781533841000,-1000.0,0.00014748,2]
[425122525,1781533841000,-685.76,0.00014178,2]
[425122572,1781533841000,-685.76,0.00014735,2]
[425122552,1781533841000,-741.09,0.00014469,2]
[425122474,1781533841000,-206.84341875,0.00012278,2]
[425122555,1781533841000,-685.76,0.00014521,2]
[425122524,1781533841000,-500.0,0.00014151,2]
[425122528,1781533841000,-685.76,0.00014213,2]
[425122530,1781533841000,-685.76,0.00014279,2]
[425122532,1781533841000,-206.213203,0.00014292,2]
[425122553,1781533841000,-685.76,0.00014473,2]
[425122533,1781533841000,-233.14185,0.00014292,2]
[425122535,1781533841000,-180.861556,0.00014292,2]
[425122546,1781533841000,-685.76,0.00014395,2]
[425122534,1781533841000,-248.349136,0.00014292,2]
[425122529,1781533841000,-685.76,0.00014247,2]
[425122537,1781533841000,-198.480207,0.00014292,2]
[425122536,1781533841000,-160.0,0.00014292,2]
[425122538,1781533841000,-236.960414,0.00014292,2]
[425122545,1781533841000,-741.09,0.00014384,2]
[425122543,1781533841000,-685.76,0.00014339,2]
[425122554,1781533841000,-685.76,0.00014498,2]
[425122547,1781533841000,-1600.0,0.00014405,2]
[425122544,1781533841000,-685.76,0.00014367,2]
[425122550,1781533841000,-184.196099,0.00014435,2]
[425122549,1781533841000,-500.0,0.00014425,2]
[425122556,1781533841000,-1620.43110797,0.00014526,2]
[425122548,1781533841000,-685.76,0.00014422,2]
[425122541,1781533841000,-438.659889,0.00014292,2]
[425122542,1781533841000,-685.76,0.00014309,2]
[425122539,1781533841000,-160.0,0.00014292,2]
[425122540,1781533841000,-299.329944,0.00014292,2]
[425122557,1781533841000,-685.76,0.00014545,2]
[425122605,1781533842000,-500.0,0.00014973,2]
[425122616,1781533842000,-275.86,0.00015068,2]
[425122608,1781533842000,-6208.543,0.00014999,2]
[425122607,1781533842000,-574.57860626,0.00014999,2]
[425122609,1781533842000,-439.791,0.00014999,2]
[425122610,1781533842000,-5980.36,0.00015,2]
[425122613,1781533842000,-354.926473,0.00015006,2]
[425122618,1781533842000,-2111.0,0.000152,3]
[425122615,1781533842000,-408.177197,0.00015006,2]
[425122611,1781533842000,-1059.2,0.00015,2]
[425122617,1781533842000,-736.0,0.00015135,2]
[425122621,1781533842000,-170.66,0.00015473,2]
[425122620,1781533842000,-250.0,0.00015338,2]
[425122628,1781533842000,-44322.46917553,0.00016057,2]
[425122626,1781533842000,-300.0,0.00016,2]
[425122606,1781533842000,-500.0,0.00014998,2]
[425122614,1781533842000,-270.654827,0.00015006,2]
[425122596,1781533842000,-741.09,0.00014869,2]
[425122588,1781533842000,-685.76,0.00014755,2]
[425122598,1781533842000,-685.76,0.000149,2]
[425122586,1781533842000,-713.23,0.00014748,2]
[425122590,1781533842000,-685.76,0.00014793,2]
[425122587,1781533842000,-741.09,0.0001475,2]
[425122585,1781533842000,-1000.0,0.00014748,2]
[425122583,1781533842000,-1000.0,0.00014748,2]
[425122589,1781533842000,-685.76,0.00014774,2]
[425122584,1781533842000,-1000.0,0.00014748,2]
[425122619,1781533842000,-500.0,0.00015247,2]
[425122597,1781533842000,-685.76,0.00014882,2]
[425122591,1781533842000,-741.09,0.0001481,2]
[425122592,1781533842000,-685.76,0.00014811,2]
[425122594,1781533842000,-685.76,0.00014847,2]
[425122601,1781533842000,-741.09,0.00014924,2]
[425122600,1781533842000,-2000.0,0.00014917,2]
[425122604,1781533842000,-685.76,0.0001495,2]
[425122599,1781533842000,-685.76,0.00014917,2]
[425122595,1781533842000,-685.76,0.00014865,2]
[425122602,1781533842000,-168.79,0.00014932,2]
[425122593,1781533842000,-685.76,0.00014829,2]
[425122624,1781533842000,-1620.43110797,0.00015823,2]
[425122603,1781533842000,-685.76,0.00014934,2]
[425122629,1781533842000,-168.79,0.00016081,2]
[425122648,1781533842000,-26127.2465186,0.00016896,2]
[425122646,1781533842000,-2972.21033107,0.000167,2]
[425122654,1781533842000,-3578.4523002,0.00017155,2]
[425122650,1781533842000,-1613.0535,0.0001708,2]
[425122652,1781533842000,-1620.43110797,0.00017119,2]
[425122653,1781533842000,-1230.5552,0.00017133,2]
[425122656,1781533842000,-500.0,0.00017171,2]
[425122665,1781533842000,-500.0,0.00017171,2]
[425122647,1781533842000,-170.66,0.00016762,2]
[425122664,1781533842000,-500.0,0.00017171,2]
[425122666,1781533842000,-466570.06091748,0.00017172,2]
[425122660,1781533842000,-500.0,0.00017171,2]
[425122661,1781533842000,-500.0,0.00017171,2]
[425122658,1781533842000,-500.0,0.00017171,2]
[425122662,1781533842000,-230.66,0.00017171,2]
[425122663,1781533842000,-500.0,0.00017171,2]
[425122669,1781533842000,-2904.59102342,0.00017172,2]
[425122623,1781533842000,-5528.0,0.000157,5]
[425122655,1781533842000,-500.0,0.00017171,2]
[425122651,1781533842000,-2972.21033107,0.000171,2]
[425122612,1781533842000,-351.1369454,0.00015,2]
[425122645,1781533842000,-180.020618,0.00016692,2]
[425122625,1781533842000,-1500.0,0.00015984,2]
[425122622,1781533842000,-299.15102342,0.00015521,2]
[425122631,1781533842000,-300.0,0.00016108,7]
[425122641,1781533842000,-1252.0,0.0001653,2]
[425122642,1781533842000,-1555.5,0.00016532,2]
[425122632,1781533842000,-2972.21033107,0.000162,2]
[425122630,1781533842000,-1050.0,0.00016108,2]
[425122639,1781533842000,-845.9,0.00016438,2]
[425122649,1781533842000,-2972.21033107,0.000169,2]
[425122633,1781533842000,-5225.84,0.00016252,2]
[425122637,1781533842000,-184.561766,0.00016436,2]
[425122644,1781533842000,-2972.21033107,0.000166,2]
[425122643,1781533842000,-500.0,0.00016575,2]
[425122635,1781533842000,-2000.0,0.00016409,2]
[425122627,1781533842000,-1600.0,0.00016006,2]
[425122640,1781533842000,-268.59,0.00016438,2]
[425122634,1781533842000,-2972.21033107,0.000164,2]
[425122638,1781533842000,-212.252142,0.00016436,2]
[425122636,1781533842000,-3813.57368826,0.0001642,2]
[425122671,1781533843000,-1629.18,0.00014897,2]
[425122672,1781533843000,-1471.81449182,0.00017172,2]
[425122673,1781533843000,-10459.99217486,0.00017172,2]
[425122684,1781533844000,-1253.43461164,0.00017172,2]
[425122683,1781533844000,-3250.20385784,0.00017172,2]
[425122691,1781533846000,-1166.07283198,0.00017172,2]
[425122690,1781533846000,-500.0,0.00017171,2]
[425122688,1781533846000,-77022.2097858,0.00017172,2]
[425122687,1781533846000,-500.0,0.00014747,2]
[425122686,1781533846000,-1492.28988713,0.00017172,2]
[425122685,1781533846000,-500.0,0.00013698,2]
[425122689,1781533846000,-437.36834135,0.00017172,2]
[425122697,1781533928000,547.05727971,7.945e-05,2]
[425122696,1781533928000,2173.16488029,7.945e-05,2]
[425122699,1781534100000,-424.77676282,0.00011385,2]
[425122700,1781534154000,-500.0,0.00011386,2]
[425122701,1781534167000,167.87247565,0.00011459,7]
[425122702,1781534208000,-150.0,0.00011385,2]
[425122715,1781534209000,-500.0,0.00011385,2]
[425122714,1781534209000,-500.0,0.00011385,2]
[425122703,1781534209000,-500.0,0.00011385,2]
[425122705,1781534209000,-441.68934635,0.00011385,2]
[425122706,1781534209000,-500.0,0.00011385,2]
[425122708,1781534209000,-500.0,0.00011385,2]
[425122704,1781534209000,-500.0,0.00011385,2]
[425122709,1781534209000,-500.0,0.00011385,2]
[425122710,1781534209000,-500.0,0.00011385,2]
[425122707,1781534209000,-500.0,0.00011385,2]
[425122711,1781534209000,-500.0,0.00011385,2]
[425122712,1781534209000,-500.0,0.00011385,2]
[425122713,1781534209000,-500.0,0.00011385,2]
[425122716,1781534210000,-500.0,0.00011385,2]
[425122718,1781534210000,-500.0,0.00011385,2]
[425122719,1781534210000,-500.0,0.00011385,2]
[425122717,1781534210000,-500.0,0.00011385,2]
[425122721,1781534210000,-500.0,0.00011385,2]
[425122722,1781534210000,-500.0,0.00011385,2]
[425122723,1781534210000,-58.31065365,0.00011385,2]
[425122720,1781534210000,-500.0,0.00011385,2]
[425122725,1781534212000,-441.68934635,0.00011385,2]
[425122727,1781534212000,-500.0,0.00011385,2]
[425122726,1781534212000,-500.0,0.00011385,2]
[425122729,1781534212000,-232.09536618,0.00011385,2]
[425122728,1781534212000,-210.29803469,0.00011385,2]
[425122731,1781534212000,-500.0,0.00011385,2]
[425122730,1781534212000,-500.0,0.00011385,2]
[425122724,1781534212000,-150.0,0.00011385,2]
[425122732,1781534212000,-500.0,0.00011385,2]
[425122733,1781534212000,-500.0,0.00011385,2]
[425122735,1781534212000,-500.0,0.00011385,2]
[425122734,1781534212000,-402.46731966,0.00011385,2]
[425122743,1781534212000,-479.16839045,0.00011385,2]
[425122742,1781534212000,-500.0,0.00011385,2]
[425122741,1781534212000,-500.0,0.00011385,2]
[425122736,1781534212000,-352.08410485,0.00011385,2]
[425122739,1781534212000,-287.16964229,0.00011385,2]
[425122738,1781534212000,-500.0,0.00011385,2]
[425122740,1781534212000,-500.0,0.00011385,2]
[425122737,1781534212000,-500.0,0.00011385,2]
[425122746,1781534213000,-10000.0,0.00011386,2]
[425122745,1781534213000,-872.31563428,0.00011386,2]
[425122744,1781534213000,-572.71216125,0.00011386,2]
[425122747,1781534214000,-10000.0,0.00011386,2]
[425122748,1781534215000,-10000.0,0.00011386,2]
[425122749,1781534216000,-10000.0,0.00011386,2]
[425122750,1781534217000,-10000.0,0.00011386,2]
[425122751,1781534217000,-10000.0,0.00011386,2]
[425122753,1781534219000,-7404.69546748,0.00011386,2]
[425122752,1781534219000,-10000.0,0.00011386,2]
[425122754,1781534378000,-458.7012835,0.00011178,2]
[425122756,1781534379000,-250.0,0.00011455,2]
[425122755,1781534379000,-555.6206303,0.00011327,2]
[425122759,1781534380000,-150.0,0.00011574,2]
[425122757,1781534380000,-300.0,0.00011489,2]
[425122758,1781534380000,-392.01065711,0.00011557,2]
[425122760,1781534380000,-2135.34101672,0.00011608,2]
[425122762,1781534380000,-500.0,0.00011622,2]
[425122763,1781534380000,-500.0,0.00011622,2]
[425122761,1781534380000,-198.5744047,0.00011622,2]
[425122764,1781534380000,-18.45329117,0.00011622,2]
[425122781,1781534401000,-15633.28599293,0.00012127,2]
[425122765,1781534401000,-500.0,0.00011285,2]
[425122767,1781534401000,-481.54670883,0.00011622,2]
[425122766,1781534401000,-194.53646881,0.00011474,2]
[425122768,1781534401000,-245.58867052,0.00011622,2]
[425122769,1781534401000,-572.71216125,0.00011623,2]
[425122773,1781534401000,-150.0,0.00011688,2]
[425122771,1781534401000,-160.0,0.0001163,2]
[425122775,1781534401000,-150.0,0.00011803,2]
[425122772,1781534401000,-160.0,0.00011631,2]
[425122776,1781534401000,-150.0,0.00011917,2]
[425122777,1781534401000,-271.67209626,0.00011978,2]
[425122778,1781534401000,-218.87280257,0.00011978,2]
[425122779,1781534401000,-150.0,0.00012032,2]
[425122780,1781534401000,-194.53646879,0.00012047,2]
[425122774,1781534401000,-194.53646879,0.00011761,2]
[425122770,1781534401000,-572.71216125,0.00011623,2]
[425122784,1781534415000,-266.01477026,0.00012127,2]
[425122785,1781534415000,-9282.98522974,0.00012127,2]
[425122782,1781534415000,-300.0,0.00012126,2]
[425122783,1781534415000,-151.0,0.00012126,2]
[425122786,1781534421000,-10000.0,0.00012127,2]
[425122787,1781534426000,-10000.0,0.00012127,2]
[425122788,1781534431000,-10000.0,0.00012127,2]
[425122789,1781534442000,-7500.0,0.00012127,2]
[425122792,1781534455000,-9388.72052985,0.00012127,2]
[425122791,1781534455000,-162.46675632,0.00012126,2]
[425122790,1781534455000,-248.81271383,0.00012126,2]
[425122793,1781534464000,-10000.0,0.00012127,2]
[425122796,1781534482000,-221.98684228,0.00012127,2]
[425122795,1781534482000,-2418.66,0.00012127,2]
[425122794,1781534482000,-7759.35315772,0.00012127,2]
[425122798,1781534513000,-250.0,0.00012127,2]
[425122799,1781534513000,-298.89838462,0.00012127,2]
[425122797,1781534513000,-977.08315772,0.00012127,2]
[425122800,1781534513000,-309.0,0.00012127,2]
[425122803,1781534513000,-171.21,0.00012386,2]
[425122801,1781534513000,-319.0,0.00012127,2]
[425122802,1781534513000,-317.0,0.00012127,2]
[425122804,1781534514000,216.09656886,0.00012128,2]
[425122805,1781534523000,500.0,0.00012126,2]
[425122808,1781534524000,517.21152507,0.00012126,2]
[425122807,1781534524000,500.0,0.00012126,2]
[425122806,1781534524000,500.0,0.00012126,2]
[425122809,1781534526000,160.0,0.00012127,2]
[425122811,1781534532000,815.00726561,0.00012126,2]
[425122810,1781534532000,815.00726561,0.00012126,2]
[425122812,1781534533000,815.00726561,0.00012126,2]
[425122813,1781534533000,815.00726561,0.00012126,2]
[425122814,1781534533000,815.00726561,0.00012126,2]
[425122815,1781534533000,815.00726561,0.00012126,2]
[425122816,1781534533000,815.00726561,0.00012126,2]
[425122817,1781534533000,59.44950446,0.00012126,2]
[425122818,1781534565000,-311.285313,0.00012126,2]
[425122819,1781534565000,-755.55776115,0.00012126,2]
[425122820,1781534565000,-815.00726561,0.00012126,2]
[425122821,1781534565000,-815.00726561,0.00012126,2]
[425122823,1781534565000,-815.00726561,0.00012126,2]
[425122824,1781534565000,-815.00726561,0.00012126,2]
[425122822,1781534565000,-815.00726561,0.00012126,2]
[425122825,1781534565000,-815.00726561,0.00012126,2]
[425122829,1781534565000,-815.00726561,0.00012126,2]
[425122827,1781534565000,-815.00726561,0.00012126,2]
[425122828,1781534565000,-815.00726561,0.00012126,2]
[425122830,1781534565000,-815.00726561,0.00012126,2]
[425122831,1781534565000,-568.07700414,0.00012126,2]
[425122826,1781534565000,-815.00726561,0.00012126,2]
[425122836,1781534582000,-815.00726561,0.00012126,2]
[425122834,1781534582000,-815.00726561,0.00012126,2]
[425122835,1781534582000,-815.00726561,0.00012126,2]
[425122833,1781534582000,-815.00726561,0.00012126,2]
[425122832,1781534582000,-246.93026147,0.00012126,2]
[425122839,1781534583000,-815.00726561,0.00012126,2]
[425122837,1781534583000,-815.00726561,0.00012126,2]
[425122838,1781534583000,-815.00726561,0.00012126,2]
[425122840,1781534583000,-815.00726561,0.00012126,2]
[425122843,1781534583000,-815.00726561,0.00012126,2]
[425122844,1781534583000,-815.00726561,0.00012126,2]
[425122842,1781534583000,-815.00726561,0.00012126,2]
[425122845,1781534583000,-572.98255121,0.00012126,2]
[425122841,1781534583000,-815.00726561,0.00012126,2]
[425122846,1781534601000,-500.0,0.00012126,2]
[425122847,1781534601000,-242.0247144,0.00012126,2]
[425122850,1781534601000,-815.00726561,0.00012126,2]
[425122848,1781534601000,-815.00726561,0.00012126,2]
[425122849,1781534601000,-815.00726561,0.00012126,2]
[425122851,1781534601000,-815.00726561,0.00012126,2]
[425122854,1781534601000,-815.00726561,0.00012126,2]
[425122853,1781534601000,-815.00726561,0.00012126,2]
[425122855,1781534601000,-815.00726561,0.00012126,2]
[425122857,1781534601000,-815.00726561,0.00012126,2]
[425122856,1781534601000,-815.00726561,0.00012126,2]
[425122858,1781534601000,-815.00726561,0.00012126,2]
[425122859,1781534601000,-792.89536389,0.00012126,2]
[425122852,1781534601000,-815.00726561,0.00012126,2]
[425122861,1781534623000,-815.00726561,0.00012126,2]
[425122860,1781534623000,-22.11190172,0.00012126,2]
[425122864,1781534624000,-815.00726561,0.00012126,2]
[425122863,1781534624000,-815.00726561,0.00012126,2]
[425122862,1781534624000,-815.00726561,0.00012126,2]
[425122865,1781534624000,-815.00726561,0.00012126,2]
[425122866,1781534624000,-815.00726561,0.00012126,2]
[425122870,1781534624000,-894.52016958,0.00012126,2]
[425122868,1781534624000,-815.00726561,0.00012126,2]
[425122869,1781534624000,-894.52016958,0.00012126,2]
[425122873,1781534624000,-379.74929508,0.00012126,2]
[425122871,1781534624000,-894.52016958,0.00012126,2]
[425122872,1781534624000,-894.52016958,0.00012126,2]
[425122867,1781534624000,-815.00726561,0.00012126,2]
[425122874,1781534637000,-6400.0,0.0001196,2]
[425122876,1781534692000,-205.24974477,0.00011877,2]
[425122875,1781534692000,-994.75025523,0.00011849,2]
[425122877,1781534831000,-166.66,0.00011005,2]
[425122879,1781534851000,-3384.45,0.00011197,2]
[425122878,1781534851000,-150.0,0.00011101,2]
[425122880,1781534885000,-150.0,0.00011197,2]
[425122881,1781534902000,-150.0,0.00011217,2]
[425122883,1781534902000,-2060.90932349,0.00011269,2]
[425122886,1781534902000,-1439.32202953,0.00011269,2]
[425122884,1781534902000,-2227.56932349,0.00011269,2]
[425122885,1781534902000,-2227.56932349,0.00011269,2]
[425122882,1781534902000,-166.66,0.00011236,2]
[425122892,1781534903000,-1136.16338255,0.00011477,2]
[425122888,1781534903000,-200.0,0.00011433,2]
[425122890,1781534903000,-170.71729396,0.00011477,2]
[425122889,1781534903000,-166.66,0.00011468,2]
[425122891,1781534903000,-2227.56932349,0.00011477,2]
[425122893,1781534903000,-166.66,0.000117,2]
[425122894,1781534903000,-924.74594094,0.00011757,2]
[425122896,1781534903000,-382.13473557,0.00011757,2]
[425122887,1781534903000,-250.87,0.0001134,2]
[425122897,1781534903000,-409.09707871,0.00011795,2]
[425122899,1781534903000,-160.0,0.0001188,2]
[425122900,1781534903000,-300.0,0.00011895,2]
[425122898,1781534903000,-151.86025523,0.00011877,2]
[425122901,1781534903000,-150.0,0.000119,2]
[425122903,1781534903000,-166.66,0.00011931,2]
[425122902,1781534903000,-193.0,0.00011913,2]
[425122904,1781534903000,138.26789837,0.0001116,2]
[425122895,1781534903000,-2227.56932349,0.00011757,2]
[425122905,1781534921000,-2424.80757226,0.0001116,2]
[425122906,1781534946000,-80.76452937,0.0001116,2]
[425122907,1781534946000,-514.42332818,0.00011333,2]
[425122910,1781534971000,-1978.48266492,0.00011348,2]
[425122909,1781534971000,-536.79,0.00011344,2]
[425122908,1781534971000,-125.57667182,0.00011333,2]
[425122912,1781534972000,-2518.10815618,0.00011348,2]
[425122911,1781534972000,-2640.84933674,0.00011348,2]
[425122925,1781535037000,-579.59,0.00011248,2]
[425122970,1781535038000,-796.90239435,0.00011948,2]
[425122965,1781535038000,-796.90239435,0.00011948,2]
[425122964,1781535038000,-796.90239435,0.00011948,2]
[425122967,1781535038000,-796.90239435,0.00011948,2]
[425122973,1781535038000,-796.90239435,0.00011948,2]
[425122963,1781535038000,-796.90239435,0.00011948,2]
[425122968,1781535038000,-796.90239435,0.00011948,2]
[425122966,1781535038000,-796.90239435,0.00011948,2]
[425122971,1781535038000,-796.90239435,0.00011948,2]
[425122975,1781535038000,-796.90239435,0.00011948,2]
[425122972,1781535038000,-796.90239435,0.00011948,2]
[425122974,1781535038000,-796.90239435,0.00011948,2]
[425122982,1781535038000,-796.90239435,0.00011948,2]
[425122981,1781535038000,-796.90239435,0.00011948,2]
[425122996,1781535038000,-796.90239435,0.00011948,2]
[425122977,1781535038000,-796.90239435,0.00011948,2]
[425122978,1781535038000,-796.90239435,0.00011948,2]
[425122980,1781535038000,-796.90239435,0.00011948,2]
[425122976,1781535038000,-796.90239435,0.00011948,2]
[425122983,1781535038000,-796.90239435,0.00011948,2]
[425122995,1781535038000,-796.90239435,0.00011948,2]
[425122986,1781535038000,-796.90239435,0.00011948,2]
[425122984,1781535038000,-796.90239435,0.00011948,2]
[425122969,1781535038000,-796.90239435,0.00011948,2]
[425122979,1781535038000,-796.90239435,0.00011948,2]
[425122959,1781535038000,-500.0,0.00011948,2]
[425122934,1781535038000,-343.29292514,0.00011307,2]
[425122958,1781535038000,-500.0,0.00011948,2]
[425122985,1781535038000,-796.90239435,0.00011948,2]
[425122932,1781535038000,-450.0,0.00011307,2]
[425122942,1781535038000,-218.0,0.00011645,2]
[425122944,1781535038000,-500.64331299,0.00011948,2]
[425122943,1781535038000,-508.88536841,0.00011948,2]
[425122931,1781535038000,-693.04329282,0.00011307,2]
[425122936,1781535038000,-513.66378204,0.00011307,2]
[425122939,1781535038000,-176.92984216,0.00011348,2]
[425122941,1781535038000,-150.0,0.00011532,2]
[425122940,1781535038000,-150.0,0.00011419,2]
[425122946,1781535038000,-500.08988138,0.00011948,2]
[425122955,1781535038000,-500.0,0.00011948,2]
[425122954,1781535038000,-500.0,0.00011948,2]
[425122956,1781535038000,-500.0,0.00011948,2]
[425122952,1781535038000,-500.0,0.00011948,2]
[425122945,1781535038000,-617.54770841,0.00011948,2]
[425122949,1781535038000,-500.0,0.00011948,2]
[425122957,1781535038000,-197.41541426,0.00011948,2]
[425122953,1781535038000,-462.70047815,0.00011948,2]
[425122947,1781535038000,-500.0,0.00011948,2]
[425122948,1781535038000,-500.0,0.00011948,2]
[425122950,1781535038000,-217.83803954,0.00011948,2]
[425122951,1781535038000,-500.0,0.00011948,2]
[425122960,1781535038000,-796.90239435,0.00011948,2]
[425122961,1781535038000,-796.90239435,0.00011948,2]
[425122962,1781535038000,-796.90239435,0.00011948,2]
[425122987,1781535038000,-796.90239435,0.00011948,2]
[425123036,1781535038000,-784.82811565,0.00011948,2]
[425122989,1781535038000,-796.90239435,0.00011948,2]
[425123010,1781535038000,-796.90239435,0.00011948,2]
[425123020,1781535038000,-784.82811565,0.00011948,2]
[425123024,1781535038000,-784.82811565,0.00011948,2]
[425123034,1781535038000,-784.82811565,0.00011948,2]
[425123026,1781535038000,-784.82811565,0.00011948,2]
[425123027,1781535038000,-784.82811565,0.00011948,2]
[425123032,1781535038000,-784.82811565,0.00011948,2]
[425123023,1781535038000,-784.82811565,0.00011948,2]
[425123025,1781535038000,-784.82811565,0.00011948,2]
[425123031,1781535038000,-784.82811565,0.00011948,2]
[425123028,1781535038000,-784.82811565,0.00011948,2]
[425123030,1781535038000,-784.82811565,0.00011948,2]
[425123033,1781535038000,-784.82811565,0.00011948,2]
[425123029,1781535038000,-784.82811565,0.00011948,2]
[425123039,1781535038000,-784.82811565,0.00011948,2]
[425123037,1781535038000,-784.82811565,0.00011948,2]
[425123038,1781535038000,-784.82811565,0.00011948,2]